bitfinex/quotes_SOLUSD_20260108
["timestamp","ask_amount","ask_price","bid_price","bid_amount"]
[1767908184725,121.17583474,138.31,138.23,26.00481446]
[1767908184726,103.1,138.31,138.26,0.6853502]
[1767908184924,105.246334,138.31,138.26,0.6853502]
[1767908185119,103.1,138.31,138.27,0.6853502]
[1767908185430,2.146334,138.33,138.29,0.6853502]
[1767908185735,0.431841,138.36,138.32,0.6853502]
[1767908186041,0.431841,138.36,138.33,2.11370872]
[1767908186239,0.431841,138.36,138.32,25.30364372]
[1767908186535,0.1,138.37,138.33,2.146334]
[1767908187248,0.1,138.37,138.32,25.30364372]
[1767908187438,0.1,138.37,138.32,27.44997772]
[1767908187439,2.246334,138.37,138.32,27.44997772]
[1767908187839,0.1,138.37,138.34,0.6853502]
[1767908188024,2.146334,138.39,138.36,0.6853502]
[1767908188225,23.28149458,138.4,138.36,0.6853502]
[1767908188821,10.08104414,138.41,138.37,0.6853502]
[1767908189730,2.146334,138.41,138.37,0.6853502]
[1767908190335,2.146334,138.41,138.38,0.6853502]
[1767908190637,2.146334,138.41,138.38,0.6253502]
[1767908191220,7.32397704,138.43,138.38,0.6253502]
[1767908191421,2.246334,138.43,138.38,2.146334]
[1767908191731,2.246334,138.43,138.37,9.37302449]
[1767908192130,0.1,138.43,138.37,27.44052467]
[1767908192336,0.1,138.43,138.4,7.22543352]
[1767908192538,0.1,138.43,138.41,0.65836278]
[1767908192936,0.1,138.44,138.42,0.65836278]
[1767908193720,12.74793118,138.46,138.43,0.65836278]
[1767908194542,12.74793118,138.46,138.44,0.65836278]
[1767908194745,19.8801107,138.51,138.45,2.146334]
[1767908194746,0.68604348,138.51,138.45,2.146334]
[1767908194934,2.83237748,138.51,138.46,2.146334]
[1767908195446,10.0521156,138.51,138.45,2.146334]
[1767908195850,2.83237748,138.51,138.46,2.146334]
[1767908196143,0.68604348,138.47,138.43,20.42386498]
[1767908196332,0.68604348,138.48,138.43,22.57019898]
[1767908196534,18.04923832,138.51,138.43,22.57019898]
[1767908196535,3.34103443,138.51,138.45,3.34103443]
[1767908196845,0.68604348,138.52,138.45,3.34103443]
[1767908197046,3.34103443,138.51,138.46,3.34103443]
[1767908197548,3.34103443,138.51,138.45,3.34103443]
[1767908197761,4.02707791,138.48,138.44,7.22333581]
[1767908197927,4.02707791,138.49,138.44,7.22333581]
[1767908198341,0.68604348,138.5,138.44,7.22333581]
[1767908198533,3.34103443,138.49,138.45,7.22281438]
[1767908199943,4.02707791,138.48,138.43,20.42376576]
[1767908200148,4.02707791,138.47,138.42,7.22398922]
[1767908200950,3.34103443,138.46,138.42,7.22398922]
[1767908201949,3.34103443,138.46,138.41,20.42475695]
[1767908202265,4.02707791,138.44,138.41,13.2]
[1767908203355,3.34103443,138.44,138.41,13.2]
[1767908203764,3.34103443,138.43,138.41,13.2]
[1767908204760,4.02707791,138.44,138.41,13.2]
[1767908205061,3.34103443,138.44,138.41,13.2]
[1767908205363,4.02707791,138.47,138.41,41.82794423]
[1767908205656,4.02707791,138.47,138.42,3.34103443]
[1767908205857,3.34103443,138.48,138.42,3.34103443]
[1767908206060,3.34103443,138.48,138.44,7.22334585]
[1767908208059,31.37063057,138.52,138.44,7.22334585]
[1767908208060,3.34103443,138.51,138.46,7.22230247]
[1767908208450,4.02707791,138.51,138.46,7.22230247]
[1767908208857,0.68604348,138.51,138.46,7.22230247]
[1767908209057,3.34103443,138.5,138.46,7.22230247]
[1767908209865,4.02707791,138.51,138.46,7.22230247]
[1767908210067,3.34103443,138.5,138.46,7.22230247]
[1767908210377,4.02707791,138.49,138.44,20.40286736]
[1767908210543,7.21975899,138.51,138.45,10.84799154]
[1767908210742,7.21975899,138.51,138.46,3.34103443]
[1767908210743,4.02707791,138.51,138.46,3.34103443]
[1767908211467,0.68604348,138.51,138.47,3.34103443]
[1767908211669,0.68604348,138.54,138.48,3.34103443]
[1767908211859,0.68604348,138.54,138.5,3.34103443]
[1767908212275,0.68604348,138.57,138.51,3.34103443]
[1767908212460,4.02707791,138.57,138.52,3.34103443]
[1767908212862,0.68604348,138.56,138.52,3.34103443]
[1767908213356,7.90324815,138.56,138.52,3.34103443]
[1767908213753,7.90324815,138.56,138.52,10.55988772]
[1767908213754,0.68604348,138.56,138.52,10.55988772]
[1767908213950,0.68604348,138.56,138.52,7.21885329]
[1767908214170,3.34103443,138.57,138.52,10.55988772]
[1767908214473,4.02707791,138.58,138.53,3.34103443]
[1767908214674,11.24319742,138.58,138.53,3.34103443]
[1767908214977,0.68604348,138.6,138.56,3.34103443]
[1767908215853,0.68604348,138.59,138.54,20.39794885]
[1767908216077,0.68604348,138.59,138.54,23.73898328]
[1767908216754,0.68604348,138.59,138.55,3.34103443]
[1767908217650,0.68604348,138.58,138.54,16.52103443]
[1767908218470,4.02707791,138.61,138.56,3.34103443]
[1767908218670,7.90061704,138.61,138.56,3.34103443]
[1767908219193,0.68604348,138.6,138.56,3.34103443]
[1767908219598,7.90119065,138.6,138.56,3.34103443]
[1767908219761,7.90119065,138.6,138.55,10.5584115]
[1767908219966,7.90119065,138.6,138.56,3.34103443]
[1767908220373,7.90119065,138.6,138.55,10.5584115]
[1767908220884,7.90119065,138.6,138.56,3.34103443]
[1767908224182,0.6832026,138.59,138.56,3.34103443]
[1767908224476,0.6832026,138.58,138.54,13.18]
[1767908224689,0.6832026,138.57,138.54,13.18]
[1767908225973,0.6832026,138.56,138.51,13.18]
[1767908226167,0.68376004,138.55,138.51,23.74028033]
[1767908226690,0.68376004,138.55,138.51,13.18]
[1767908226691,0.68376004,138.54,138.51,13.18]
[1767908226864,4.02479447,138.54,138.51,13.18]
[1767908227378,4.02479447,138.54,138.5,7.2200018]
[1767908228284,4.02479447,138.54,138.49,25.27222864]
[1767908228786,0.68376004,138.53,138.49,25.27222864]
[1767908232082,0.68376004,138.53,138.45,36.11383182]
[1767908232281,3.34103443,138.5,138.46,0.68003679]
[1767908232481,3.34103443,138.5,138.47,7.90151996]
[1767908232482,3.31103444,138.5,138.47,7.90151996]
[1767908236066,0.68376004,138.55,138.5,0.68003679]
[1767908236268,164.3,138.56,138.48,13.46432314]
[1767908236269,0.68376004,138.56,138.52,3.34103443]
[1767908236969,0.68376004,138.58,138.54,3.34103443]
[1767908237275,0.68376004,138.58,138.54,4.02107122]
[1767908237891,0.68376004,138.6,138.56,4.02107122]
[1767908238073,3.34103443,138.61,138.57,7.89620359]
[1767908238276,3.34103443,138.59,138.56,7.89699624]
[1767908238575,4.02479447,138.6,138.56,7.89699624]
[1767908238782,0.1,138.62,138.58,0.68003679]
[1767908239189,0.1,138.62,138.58,4.02107122]
[1767908239876,0.1,138.62,138.58,3.96107122]
[1767908240283,3.44103443,138.62,138.58,7.83580755]
[1767908240492,10.07340429,138.62,138.58,7.83580755]
[1767908240687,9.97340429,138.6,138.57,13.18]
[1767908241816,0.78376004,138.62,138.58,0.68003679]
[1767908241996,0.78376004,138.62,138.58,9.28964425]
[1767908242204,0.78376004,138.62,138.58,0.68003679]
[1767908242505,0.68376004,138.61,138.57,21.0764463]
[1767908242696,9.97340429,138.61,138.57,21.0764463]
[1767908243124,9.97340429,138.61,138.57,20.39640951]
[1767908243291,0.1,138.62,138.6,9.28964425]
[1767908243492,0.1,138.62,138.59,0.68003679]
[1767908244506,0.78376004,138.62,138.58,16.50537]
[1767908244690,0.78376004,138.62,138.59,7.21549161]
[1767908244890,0.1,138.62,138.59,7.21549161]
[1767908245195,0.1,138.62,138.6,0.68003679]
[1767908245499,0.1,138.62,138.6,9.96968104]
[1767908245500,1e-08,138.62,138.6,9.96968104]
[1767908245890,1e-08,138.62,138.61,7.21448668]
[1767908246297,1e-08,138.62,138.61,7.89452347]
[1767908250896,0.431841,138.63,138.61,7.89452347]
[1767908251798,1e-08,138.63,138.62,0.68003679]
[1767908252588,1e-08,138.63,138.6,21.11145384]
[1767908252792,9.28964426,138.63,138.6,21.11145384]
[1767908253102,9.28964425,138.62,138.6,13.89666833]
[1767908253289,9.28964425,138.62,138.6,13.18]
[1767908254113,0.6585881,138.63,138.59,7.93196978]
[1767908254413,9.28964425,138.62,138.59,7.93196978]
[1767908255015,0.65858809,138.62,138.59,7.93196978]
[1767908255221,0.6585881,138.63,138.59,7.93196978]
[1767908255415,9.94823235,138.63,138.59,7.93196978]
[1767908256128,1e-08,138.63,138.61,0.71666833]
[1767908256815,1e-08,138.63,138.59,25.25412098]
[1767908256816,1e-08,138.63,138.6,0.71666833]
[1767908257018,1e-08,138.63,138.61,7.21448668]
[1767908257400,0.6585881,138.63,138.61,7.21448668]
[1767908258003,0.6585881,138.63,138.6,7.21476865]
[1767908258004,6.37310395,138.63,138.6,7.21476865]
[1767908259804,6.37310394,138.61,138.58,7.21600652]
[1767908260524,2.79313896,138.61,138.58,7.21600652]
[1767908260818,0.65858809,138.58,138.55,7.21745896]
[1767908261023,2.79313896,138.58,138.55,7.21745896]
[1767908261439,0.65858809,138.58,138.55,7.21745896]
[1767908261729,2.13455087,138.57,138.55,6.26604705]
[1767908261898,2.13455087,138.56,138.54,7.93460066]
[1767908262101,2.10455088,138.56,138.54,7.93460066]
[1767908262335,2.10455088,138.56,138.54,7.21793233]
[1767908262526,2.10455088,138.56,138.54,7.93460066]
[1767908263320,1.37955088,138.56,138.54,7.21793233]
[1767908263512,2.13455087,138.61,138.55,22.53216184]
[1767908264022,2.13455087,138.61,138.56,0.71666833]
[1767908264220,2.13455087,138.6,138.56,0.71666833]
[1767908264426,2.13455087,138.59,138.56,0.71666833]
[1767908264723,5.71873107,138.59,138.56,0.71666833]
[1767908265310,5.71873107,138.6,138.56,0.71666833]
[1767908265511,5.71873107,138.61,138.57,7.93323757]
[1767908266917,5.71873107,138.61,138.58,0.71666833]
[1767908269532,7.8727122,138.62,138.58,0.71666833]
[1767908269717,5.71873107,138.61,138.58,0.71666833]
[1767908270323,5.71873107,138.59,138.56,7.93372197]
[1767908271232,6.37731916,138.59,138.55,20.39751514]
[1767908271438,5.71873107,138.58,138.55,20.39751514]
[1767908271618,5.71873107,138.58,138.55,21.11418347]
[1767908272023,6.37731916,138.59,138.55,21.11418347]
[1767908274231,5.71873107,138.56,138.49,0.71666833]
[1767908274432,5.71873107,138.5,138.46,0.71666833]
[1767908274634,13.18,138.54,138.46,0.71666833]
[1767908274826,5.71873107,138.49,138.46,7.9389085]
[1767908275633,5.71873107,138.48,138.46,7.9389085]
[1767908276211,7.21970681,138.51,138.46,7.9389085]
[1767908276212,5.71873107,138.47,138.46,0.71666833]
[1767908276426,5.71873107,138.47,138.46,7.9389708]
[1767908277820,5.71873107,138.47,138.46,0.71666833]
[1767908278315,5.71873107,138.47,138.45,20.40275037]
[1767908278520,5.71873107,138.47,138.45,21.1194187]
[1767908279143,5.71873107,138.46,138.45,21.1194187]
[1767908280247,5.71873107,138.46,138.45,13.89666833]
[1767908280640,5.71873107,138.46,138.44,7.2231457]
[1767908280946,5.71873107,138.45,138.43,7.94031246]
[1767908283445,7.22132383,138.48,138.43,7.94031246]
[1767908283446,5.71873107,138.44,138.43,7.94031246]
[1767908285328,5.71873107,138.44,138.42,7.22419995]
[1767908285533,5.71873107,138.43,138.42,7.22419995]
[1767908285734,5.71873107,138.43,138.42,7.92006587]
[1767908286033,5.71873107,138.44,138.42,7.92006587]
[1767908286623,164.3,138.5,138.43,0.70090554]
[1767908286842,2.13971577,138.45,138.43,0.70090554]
[1767908287029,2.13971577,138.44,138.42,7.92510549]
[1767908289946,2.10971565,138.44,138.42,7.92510549]
[1767908290627,5.73097874,138.44,138.42,7.92510549]
[1767908295347,5.73097874,138.43,138.41,8.12563658]
[1767908295551,18.05375739,138.48,138.41,0.2]
[1767908295552,7.22178089,138.47,138.41,0.2]
[1767908295749,5.73097874,138.42,138.41,0.2]
[1767908295951,5.73097874,138.42,138.41,7.42491149]
[1767908298751,5.73097874,138.44,138.42,0.70090554]
[1767908299758,5.73097874,138.44,138.41,25.48719022]
[1767908299759,5.73097874,138.44,138.41,26.18809576]
[1767908302366,5.73097874,138.43,138.41,26.18809576]
[1767908304886,13.18,138.48,138.41,0.2]
[1767908305176,5.73097874,138.42,138.39,7.92660257]
[1767908305475,5.73097874,138.44,138.4,0.70090554]
[1767908305783,5.73097874,138.45,138.4,0.70090554]
[1767908306272,5.73097874,138.45,138.41,7.92566866]
[1767908308461,5.73097874,138.45,138.42,0.70090554]
[1767908311083,5.73097874,138.48,138.43,0.70090554]
[1767908311386,5.73097874,138.46,138.43,0.70090554]
[1767908311884,5.73097874,138.47,138.43,13.88090554]
[1767908312082,5.73097874,138.47,138.43,21.10429124]
[1767908312409,5.73097874,138.47,138.44,0.67162272]
[1767908312579,2.13886142,138.47,138.44,0.67162272]
[1767908313671,2.13886142,138.47,138.44,7.89477621]
[1767908315364,2.13886142,138.46,138.44,7.89477621]
[1767908316195,103.1,138.5,138.43,13.18]
[1767908316493,3.34284855,138.45,138.42,0.67162272]
[1767908317798,3.34284855,138.45,138.43,7.22379278]
[1767908318295,3.34284855,138.46,138.43,7.8954155]
[1767908318496,7.21917412,138.52,138.46,0.67162272]
[1767908318681,3.34284855,138.5,138.46,0.67162272]
[1767908318882,3.34284855,138.51,138.46,0.67162272]
[1767908319388,103.1,138.58,138.43,25.28346192]
[1767908319389,3.34284855,138.54,138.5,0.67162272]
[1767908319599,3.34284855,138.54,138.5,13.85162272]
[1767908319990,3.34284855,138.54,138.51,7.21969532]
[1767908322896,25.25678876,138.58,138.51,7.21969532]
[1767908323093,3.34284855,138.54,138.52,0.67162272]
[1767908323298,3.34284855,138.54,138.51,7.21969532]
[1767908323502,3.34284855,138.54,138.51,7.89131804]
[1767908324103,7.31577015,138.59,138.52,0.67162272]
[1767908324308,3.34284855,138.57,138.53,13.85162272]
[1767908325085,3.34284855,138.57,138.54,7.21813194]
[1767908325402,3.34284855,138.61,138.56,0.67162272]
[1767908325705,1e-08,138.63,138.56,0.67162272]
[1767908325706,3.34284855,138.62,138.56,17.19447127]
[1767908325895,3.34284855,138.62,138.57,0.67162272]
[1767908327104,3.34284855,138.62,138.58,7.21604849]
[1767908329102,178.13296404,138.71,138.61,3.34284855]
[1767908329291,515.7,138.88,138.8,3.76393463]
[1767908329292,3.34284855,138.88,138.8,3.76393463]
[1767908329494,3.34284855,138.84,138.8,31.87057678]
[1767908329684,36.41450096,139.04,138.8,31.87057678]
[1767908329685,3.34284855,138.96,138.8,24.30738149]
[1767908329994,3.34284855,138.96,138.8,0.5894182]
[1767908329995,3.34284855,138.88,138.8,0.5894182]
[1767908330194,18.53227145,138.92,138.8,4.58339201]
[1767908330401,3.34284855,138.84,138.8,0.56892074]
[1767908331405,3.34284855,138.83,138.8,0.56892074]
[1767908332011,3.34284855,138.83,138.8,7.77335493]
[1767908332424,10.54380951,138.88,138.8,7.77335493]
[1767908332590,10.54380951,138.88,138.8,17.03225627]
[1767908332591,7.20096096,138.88,138.8,17.03225627]
[1767908332793,9.25890134,138.85,138.8,17.70387899]
[1767908333308,9.25890134,138.85,138.8,26.45650502]
[1767908333814,9.25890134,138.85,138.8,35.71540636]
[1767908334308,9.25890134,138.84,138.8,7.77335493]
[1767908335121,20.38100496,138.87,138.8,96.5748629]
[1767908335122,9.25890134,138.85,138.8,96.5748629]
[1767908335494,9.25890134,138.85,138.8,97.24648562]
[1767908335896,22.41890134,138.85,138.8,87.98758428]
[1767908336215,9.25890134,138.84,138.8,69.30443419]
[1767908336516,22.41890134,138.84,138.8,69.30443419]
[1767908337209,13.16,138.84,138.8,79.23495825]
[1767908337609,9.25890134,138.86,138.81,9.25890134]
[1767908337820,13.16,138.85,138.81,0.67162272]
[1767908338193,9.25890134,138.86,138.81,0.67162272]
[1767908338411,13.16,138.85,138.81,0.67162272]
[1767908338608,22.41890134,138.85,138.81,0.67162272]
[1767908338818,22.41890134,138.85,138.8,96.5748629]
[1767908339010,22.41890134,138.85,138.8,87.31596156]
[1767908339311,9.25890134,138.83,138.8,62.1]
[1767908339514,13.16,138.83,138.8,62.1]
[1767908340192,13.16,138.83,138.8,69.30456262]
[1767908340908,13.16,138.84,138.83,0.57183627]
[1767908341098,22.41890134,138.84,138.83,0.57183627]
[1767908341298,22.41890134,138.84,138.77,18.01525248]
[1767908341524,9.25890134,138.82,138.78,7.20564922]
[1767908341694,7.20165702,138.86,138.79,0.67162272]
[1767908341896,9.25890134,138.84,138.79,9.93052406]
[1767908342095,9.25890134,138.84,138.79,0.67162272]
[1767908342413,22.41890134,138.83,138.79,0.67162272]
[1767908343307,22.41890134,138.83,138.8,7.20461095]
[1767908344112,9.25890134,138.82,138.8,7.20461095]
[1767908344314,13.16,138.83,138.8,7.20461095]
[1767908344505,22.41890134,138.83,138.8,7.20461095]
[1767908344702,9.25890134,138.81,138.75,62.7578828]
[1767908344909,9.25890134,138.8,138.75,9.91678414]
[1767908345092,13.16,138.8,138.77,0.6578828]
[1767908345299,13.16,138.8,138.78,7.20564922]
[1767908345813,12.78365068,138.8,138.78,7.20564922]
[1767908347611,9.25890134,138.82,138.78,7.20564922]
[1767908347827,13.16,138.8,138.78,7.20564922]
[1767908348024,9.25890134,138.82,138.78,7.20564922]
[1767908348325,9.25890134,138.81,138.78,7.20564922]
[1767908348505,13.16,138.8,138.78,7.20564922]
[1767908349512,9.25890134,138.82,138.78,7.20564922]
[1767908349717,13.16,138.81,138.78,7.20564922]
[1767908349938,13.16,138.81,138.77,17.12280618]
[1767908350221,13.16,138.8,138.77,17.12280618]
[1767908351225,13.16,138.79,138.77,17.12280618]
[1767908351426,13.16,138.78,138.77,17.12280618]
[1767908351622,9.25890134,138.82,138.77,17.12280618]
[1767908351924,13.16,138.81,138.78,3.38714387]
[1767908352108,16.46212131,138.83,138.78,3.38714387]
[1767908352306,13.16,138.82,138.78,3.38714387]
[1767908352514,7.20321997,138.83,138.78,3.38714387]
[1767908353039,10.528433,138.83,138.78,3.38714387]
[1767908353409,13.16,138.82,138.78,3.38714387]
[1767908353828,10.528433,138.83,138.78,3.38714387]
[1767908354137,13.16,138.82,138.78,3.38714387]
[1767908354522,10.528433,138.83,138.78,3.38714387]
[1767908354815,3.32521303,138.88,138.83,0.65337876]
[1767908355028,16.48521303,138.88,138.83,3.97859179]
[1767908355230,35.99306684,138.92,138.83,3.97859179]
[1767908355421,3.32521303,138.88,138.83,3.97859179]
[1767908355629,13.16,138.87,138.83,3.97859179]
[1767908355831,10.52600727,138.88,138.83,3.97859179]
[1767908356136,13.16,138.87,138.83,11.18157406]
[1767908356336,10.52600727,138.88,138.83,11.18157406]
[1767908356337,10.52600727,138.88,138.83,7.85636103]
[1767908356536,16.48521303,138.87,138.83,7.85636103]
[1767908357136,3.32521303,138.86,138.81,3.97859179]
[1767908357318,13.16,138.86,138.81,11.18236611]
[1767908357521,3.32521303,138.86,138.82,7.85676071]
[1767908357722,3.32521303,138.85,138.83,7.20302786]
[1767908358241,16.48521303,138.86,138.83,7.20302786]
[1767908358940,13.16,138.86,138.83,7.20302786]
[1767908359118,3.32521303,138.85,138.82,7.85672894]
[1767908360722,7.20065415,138.88,138.82,7.85672894]
[1767908360924,3.32521303,138.85,138.82,7.85672894]
[1767908361319,7.20065415,138.88,138.82,7.85672894]
[1767908361522,3.32521303,138.85,138.82,7.85672894]
[1767908361818,13.16,138.86,138.82,7.85672894]
[1767908362023,3.32521303,138.85,138.82,7.85672894]
[1767908363941,16.48521303,138.86,138.82,7.85672894]
[1767908364127,16.48521303,138.86,138.83,0.65337876]
[1767908365047,16.48521303,138.86,138.82,7.20335018]
[1767908365546,13.16,138.86,138.82,7.85672894]
[1767908365734,16.48521303,138.86,138.82,7.85672894]
[1767908366057,16.48521303,138.86,138.83,0.65337876]
[1767908366644,13.16,138.86,138.83,0.65337876]
[1767908366946,16.48521303,138.86,138.83,0.65337876]
[1767908367356,16.48521303,138.86,138.82,7.85672894]
[1767908369249,13.16,138.86,138.82,7.85672894]
[1767908369447,16.48521303,138.86,138.82,7.85672894]
[1767908370631,23.68683284,138.86,138.81,7.20387015]
[1767908370857,23.68683284,138.86,138.81,7.85724891]
[1767908371158,3.32521303,138.85,138.82,7.85690931]
[1767908371334,13.16,138.85,138.82,7.85690931]
[1767908372131,16.48521303,138.85,138.81,7.85728105]
[1767908373360,16.48521303,138.85,138.83,0.67649427]
[1767908373656,36.27738998,138.92,138.82,7.20345546]
[1767908373657,16.48521303,138.87,138.84,0.67649427]
[1767908373856,16.48521303,138.87,138.82,11.20516276]
[1767908374659,3.32521303,138.86,138.82,29.21409519]
[1767908374846,3.32521303,138.86,138.82,7.87994973]
[1767908375353,13.16,138.87,138.83,0.67649427]
[1767908375562,3.32521303,138.87,138.83,0.67649427]
[1767908375736,3.32521303,138.86,138.83,0.67649427]
[1767908375936,13.16000001,138.86,138.83,0.67649427]
[1767908376137,1e-08,138.86,138.83,0.67649427]
[1767908376640,16.48521303,138.87,138.83,0.67649427]
[1767908377143,13.16,138.87,138.83,7.87940288]
[1767908377348,16.48521303,138.87,138.83,7.87940288]
[1767908377549,3.32521303,138.86,138.83,7.87940288]
[1767908378054,3.32521303,138.86,138.81,21.33467657]
[1767908378055,3.32521303,138.86,138.82,7.87982176]
[1767908378251,16.46521303,138.86,138.82,7.87982176]
[1767908378699,15.26683209,138.86,138.82,7.87982176]
[1767908378857,2.12683209,138.86,138.83,7.20304561]
[1767908379054,15.26683209,138.86,138.83,7.20304561]
[1767908379552,15.26683209,138.86,138.83,7.87953988]
[1767908379754,2.12683209,138.86,138.83,7.87953988]
[1767908380042,22.46792362,138.87,138.83,7.87953988]
[1767908380242,20.34109153,138.87,138.83,7.87953988]
[1767908380442,22.46792362,138.87,138.83,7.87953988]
[1767908381162,9.32792362,138.87,138.83,7.87953988]
[1767908381363,13.14,138.86,138.83,7.87953988]
[1767908381560,13.14,138.86,138.83,0.67649427]
[1767908381765,7.20109153,138.87,138.83,0.67649427]
[1767908381966,22.46792362,138.87,138.83,0.67649427]
[1767908382166,9.32792362,138.87,138.83,0.67649427]
[1767908382472,22.46792362,138.87,138.83,0.67649427]
[1767908382668,22.46792362,138.87,138.83,7.87945848]
[1767908383163,22.46792362,138.87,138.8,0.67649427]
[1767908383164,2.12683209,138.84,138.8,0.67649427]
[1767908383352,2.12683209,138.84,138.81,0.67649427]
[1767908383551,7.20182411,138.86,138.78,0.67649427]
[1767908383552,2.12683209,138.83,138.78,0.67649427]
[1767908383863,2.12683209,138.82,138.78,0.67649427]
[1767908384858,2.12683209,138.82,138.79,7.88162432]
[1767908385166,2.12683209,138.82,138.8,0.67649427]
[1767908385567,15.26683209,138.83,138.8,0.67649427]
[1767908385760,2.12683209,138.81,138.71,62.1]
[1767908385948,2.12683209,138.76,138.73,7.20824623]
[1767908386965,2.12683209,138.76,138.71,25.23176127]
[1767908387169,7.20560372,138.79,138.71,27.35859336]
[1767908387367,2.12683209,138.76,138.71,27.35859336]
[1767908387868,2.12683209,138.76,138.72,0.67649427]
[1767908388247,7.20480471,138.8,138.74,0.67649427]
[1767908388456,2.12683209,138.78,138.75,0.67649427]
[1767908388768,2.12683209,138.77,138.75,0.67649427]
[1767908388965,1.40183209,138.77,138.75,7.20706028]
[1767908389275,2.07832636,138.76,138.75,7.20704435]
[1767908389452,2.12683209,138.76,138.75,7.20704435]
[1767908390459,2.12683209,138.76,138.73,18.0203427]
[1767908390767,2.12683209,138.77,138.73,18.0203427]
[1767908392242,0.70838681,138.79,138.73,18.0203427]
[1767908392449,0.70838681,138.79,138.73,25.22858893]
[1767908392658,2.12683209,138.77,138.73,25.22858893]
[1767908393261,2.09990907,138.77,138.73,25.22858893]
[1767908393783,2.12683209,138.77,138.73,18.0203427]
[1767908397461,2.12683209,138.76,138.73,18.0203427]
[1767908397863,2.8352189,138.77,138.73,18.0203427]
[1767908398049,2.12683209,138.77,138.73,18.0203427]
[1767908398571,2.12683209,138.76,138.73,18.0203427]
[1767908400175,2.12683209,138.75,138.72,7.20876585]
[1767908400473,2.8352189,138.73,138.7,7.2095435]
[1767908400674,2.12683209,138.72,138.69,18.02510494]
[1767908400975,2.12683209,138.73,138.69,18.02510494]
[1767908401956,2.12683209,138.72,138.69,18.02510494]
[1767908402861,2.12683209,138.71,138.68,7.21084511]
[1767908403180,0.68672826,138.71,138.68,25.23795788]
[1767908403378,1e-08,138.71,138.68,25.23795788]
[1767908404886,2.12683209,138.71,138.68,62.1]
[1767908405176,20.36772668,138.74,138.68,62.1]
[1767908405177,2.12683209,138.7,138.68,62.1]
[1767908405376,2.81356035,138.7,138.68,62.1]
[1767908406056,2.81356035,138.7,138.64,2.32683209]
[1767908406057,0.68672826,138.68,138.64,0.2]
[1767908406257,0.70760835,138.69,138.65,7.21240533]
[1767908406452,2.83444044,138.69,138.65,7.89913358]
[1767908406866,0.70760835,138.68,138.65,7.21240533]
[1767908407066,0.70760835,138.68,138.65,25.24341867]
[1767908407868,2.12683209,138.69,138.66,7.89841545]
[1767908409886,0.70760835,138.7,138.66,7.89841545]
[1767908410067,2.12683209,138.68,138.66,7.89841545]
[1767908413080,2.12683209,138.69,138.66,7.89841545]
[1767908414691,164.3,138.81,138.69,0.71185203]
[1767908414995,2.12683209,138.74,138.71,0.71185203]
[1767908415197,2.12683209,138.75,138.71,0.71185203]
[1767908416284,2.12683209,138.72,138.67,0.71185203]
[1767908416482,2.12683209,138.7,138.67,0.71185203]
[1767908416676,2.12683209,138.69,138.67,0.71185203]
[1767908416876,2.12683209,138.7,138.67,0.71185203]
[1767908419279,2.12683209,138.69,138.67,0.71185203]
[1767908421179,2.12683209,138.7,138.67,0.71185203]
[1767908421892,2.12683209,138.69,138.67,0.71185203]
[1767908423401,2.18249549,138.68,138.66,13.16]
[1767908423588,2.12683209,138.67,138.65,0.71185203]
[1767908423906,2.12683209,138.68,138.65,0.71185203]
[1767908426191,2.12683209,138.66,138.64,62.3]
[1767908426378,2.12683209,138.67,138.64,62.3]
[1767908427484,2.12683209,138.67,138.64,0.2]
[1767908427684,10.04560722,138.68,138.64,0.2]
[1767908428189,2.12683209,138.67,138.64,0.91185203]
[1767908429397,0.70760835,138.68,138.64,8.12458582]
[1767908429701,9.33736473,138.69,138.65,0.71185203]
[1767908430007,0.70760835,138.73,138.68,0.71185203]
[1767908430177,2.12683209,138.73,138.7,0.71185203]
[1767908430380,2.29057816,138.72,138.7,13.16]
[1767908430576,0.16374607,138.72,138.7,13.16]
[1767908430801,2.12683209,138.72,138.7,13.16]
[1767908430986,2.28514009,138.72,138.7,13.16]
[1767908431296,9.49395536,138.72,138.7,13.16]
[1767908433403,9.33564736,138.72,138.7,13.16]
[1767908435183,7.91290009,138.73,138.7,13.16]
[1767908435388,2.12683209,138.72,138.7,13.16]
[1767908436504,2.12683209,138.71,138.68,13.16]
[1767908436693,2.12683209,138.71,138.68,83.13585207]
[1767908437200,2.12683209,138.71,138.69,0.66506589]
[1767908438518,3.33039363,138.71,138.69,0.66506589]
[1767908439618,3.33039363,138.7,138.68,13.16]
[1767908439819,3.33039363,138.69,138.66,0.66506589]
[1767908439997,3.33039363,138.69,138.66,7.87662716]
[1767908440317,3.33039363,138.68,138.66,7.87662716]
[1767908440495,3.30039363,138.68,138.66,7.87662716]
[1767908442096,3.30039363,138.68,138.66,0.66506589]
[1767908443708,3.33039363,138.67,138.65,13.82506589]
[1767908443916,3.33039363,138.68,138.65,21.03736306]
[1767908445610,3.33039363,138.68,138.64,0.2]